{"text_format":"1","workbook":"xlsx","n_sheets":2,"sheets":["tvrdá opatření","měkká opatření"],"not_rendered":{"charts":0,"images":0,"macros":0,"external_links":0,"defined_names":2,"comments":0,"pivot_tables":0},"unopened":[],"bounds":{"document_bytes":16777216,"sheet_cells":100000,"rows_first":2000,"rows_last":500,"rows_between":2000,"halvings":0,"cell_chars":16384,"cell_head_chars":4096},"cells_cut":0,"cells_raw":0,"read":"whole","date_system":"1900"}

{"sheet":"tvrdá opatření","index":0,"n_rows":138,"n_cols":15,"rows_kept":138,"cut":false,"hidden":false,"merged":[[137,0,137,3]]}
["Číslo","Druh dopravy","Investor","Název","Popis","Cena","Příspěvek města ",2018,2019,2020,2021,2022,2023,2024,2025]
["Doprava v klidu"]
[1,"IAD","SMČB","P+R Jírovcova 2. etapa","Realizace 1. etapy již probíhá, cca 190 stání",20000000,{"$f":"H3+I3+J3+K3+L3+M3+N3+O3","v":20000000},null,20000000]
[2,"IAD","SMČB","P+R Dlouhá louka","Změna režimu stávajícího parkoviště - vymístění kamionů",50000000,{"$f":"H4+I4+J4+K4+L4+M4+N4+O4","v":50000000},null,20000000,30000000]
[3,"IAD","SMČB","P+R Sportovní hala","Parkovací dům, příprava na ÚR",110000000,110000000,null,null,110000000]
[4,"IAD","SMČB","P+R Dynamo","Osazení závorového systému",3900000,3900000,3900000]
[5,"IAD","SMČB","P+R Planá, Letiště","P+R a záchytné parkoviště pro kamiony",10000000,10000000,null,2000000,8000000]
[6,"IAD","SMČB","P+R Mladé",null,30000000,30000000,null,null,null,null,30000000]
[7,"IAD","SMČB","P+R Generála Píky",null,15000000,15000000,null,null,null,null,null,null,null,15000000]
[8,"IAD","SMČB","P+R Vltava",null,2000000,2000000,null,null,null,null,null,2000000]
[10,"IAD","SMČB","P+R Rožnov",null,30000000,30000000,null,null,null,null,30000000]
[11,"IAD","SMČB","Organizace dopravy v klidu na území města","Parkovací zóny",50000000,50000000,5000000,15000000,null,30000000]
[12,"IAD","SMČB","Parkovací dům  Sportovní hala 2. etapa, Dynamo, sídliště",null,100000000,100000000,null,null,30000000,null,30000000,null,40000000]
["Dostavba komunikací"]
[14,"IAD/CYKLO","ŘSD/SMČB","Severní spojka","Přeložka I/20 Severní spojka, varianta základní - 3 úseky",2070364000,{"$f":"H15+I15+J15+K15+L15+M15+N15+O15","v":50000000},null,null,null,50000000]
[15,"IAD/CYKLO","ŘSD/SMČB","Okružní 1. etapa","Zlepšení parametrů ulice Okružní, 1. etapa",125000000,{"$f":"H16+I16+J16+K16+L16+M16+N16+O16","v":25000000},null,null,null,25000000]
[16,"IAD/CYKLO","JČK/SMČB","Okružní 2. etapa","Zlepšení parametrů ulice Okružní, 2. etapa - Generála Píky - Rudolfovská",25000000,25000000,null,null,null,null,null,null,null,25000000]
[17,"IAD/CYKLO","JČK/SMČB","Horákové - Litvínovická - 1. etapa Branišovská - Na Sádkách","Přeložka III/14322 - 1. etapa",113050000,50000000,null,null,null,null,50000000]
[18,"IAD/CYKLO","JČK/SMČB","Horákové - Litvínovická - 2. etapa Na Sádkách - Litvínovická","Přeložka III/14322 - 2. etapa",107101000,50000000,null,null,null,null,null,50000000]
[19,"IAD","JČK/SMČB","Přemostění Vltavy - Litvínovická - Schneidera","Přeložka III/14322 - 3. etapa - přemostění Vltavy",450000000,50000000,null,null,null,null,25000000,25000000]
[21,"IAD","JČK","Jižní tangenta 1. etapa","Jižní tangenta České Budějovice - 1. etapa",500000000,0]
[23,"IAD","JČK/SMČB","Podjezd pod nádražím","Přeložka silnic II/156 a II/157 - 3.2 etapa",1300000000,50000000,10000000,40000000]
[24,"IAD","JČK/SMČB","Zanádražní komunikace - lokalita Za hřbitovem (včetně cyklostezek)","Přeložka silnic II/156 a II/157 - 4. etapa, větev východ",34916000,10000000,null,null,null,10000000]
[25,"IAD","JČK/SMČB","Zanádražní komunikace - do lokality MÚK Pohůrka - D3 od západu  (včetně cyklostezek)","Přeložka silnic II/156 a II/157 - 5. etapa",164667000,10000000,null,null,null,null,null,null,10000000]
[26,"IAD","JČK","Zanádražní komunikace - od MÚK Pohůrka - D3 od východu","Přeložka silnic II/156 a II/157 - 6. etapa",65912000,0]
[27,"IAD","JČK","Obchvat Srubce","Přeložka silnice II/157 - obchvat Srubce",252227000,0]
[30,"IAD/CYKLO","JČK/SMČB","Rudolfovská x Hlinská - nová okružní křižovatka","1.-2. etapa, včetně cykloopatření",62000000,20000000,null,null,null,null,null,null,null,20000000]
[31,"IAD/CYKLO","SMČB","Propojení Hlinská - Hraniční",null,45000000,45000000,null,null,null,null,null,null,null,45000000]
[32,"IAD/CYKLO","SMČB","Rudolfovská - Vrbenská","Propojení Vrbenská - Rudolfovská třída",100000000,100000000,null,null,null,100000000]
[36,"IAD","ŘSD","Přeložka silnice III/000341 - Vráto - Hlinsko","Paralelní komunikace s D3",40000000,0]
[37,"IAD","JČK/SMČB","Propojení Dobrovodská - Hlinská","Navazující na paralelní komunikaci s D3",50000000,10000000,null,null,null,null,null,10000000]
[38,"VHD/CYKLO/PĚŠÍ","ŘSD/SMČB","Stavební úpravy křižovatky silnic Na Dlouhé louce x Husova - České Budějovice","Celková přestavba včetně vybudování lávky pro pěší a cyklisty a BUS pruhu",65000000,30000000,null,null,null,30000000]
[39,"IAD","ŘSD","Obchvat Lišov - Vranín","I/34 Obchvat Lišov - Vranín",1078512396,0]
[40,"IAD/CYKLO/PĚŠÍ","JČK/SMČB","Homogenizace Plavské na území města","Rozšíření stávající komunikace a vybudování cyklostezky",15000000,15000000,null,null,null,15000000]
[41,"IAD/CYKLO/VHD","SMČB","Revitalizace Pražské třídy","Včetně cyklobuspruhů",70000000,70000000,null,null,null,null,null,null,null,70000000]
[43,"IAD","SMČB","Rekonstrukce páteřních ulic",null,{"$f":"SUM(H36:O36)","v":480000000},480000000,60000000,60000000,60000000,60000000,60000000,60000000,60000000,60000000]
[44,"IAD","SMČB","Oprava místních komunikací",null,{"$f":"SUM(H37:O37)","v":320000000},320000000,40000000,40000000,40000000,40000000,40000000,40000000,40000000,40000000]
[45,"IAD","soukromý investor","Místní komunikace - rozvoj území dle územního plánu",null,0,0]
[46,"IAD","SMČB","Zklidnění dopravy v obytných částech města",null,16000000,16000000,2000000,2000000,2000000,2000000,2000000,2000000,2000000,2000000]
["Dostavba dálnice"]
[47,"IAD","ŘSD","D3 Úsilné - Nové Hodějovice","D3 0310/I Úsilné - Nové Hodějovice",6784000000,0]
[48,"IAD","ŘSD","D3 Nové Hodějovice - Dolní Třebonín","D3 0310/II (část) Nové Hodějovice - Dolní Třebonín",5950000000,0]
["Železniční stavby"]
[50,"VHD","SŽDC","IV. tranzitní železniční koridor - Modernizace trati Nemanice I - Ševětín",null,1286500000,0]
[54,"VHD","SŽDC","Nová železniční zastávka Rožnov",null,20000000,0]
[55,"VHD","SŽDC","Nová železniční zastávka Nové Roudné",null,20000000,0]
["Cyklistická a pěší doprava"]
[58,"CYKLO/PĚŠÍ","SMČB","Cyklo a pěší lávka Výstaviště - Pražské sídliště","Po spojnici Branišovské ulice přes výstaviště a lávkou přes Vltavu k nákupnímu areálu Družby a Pekárenské ulici",150000000,{"$f":"H48+I48+J48+K48+L48+M48+N48+O48","v":150000000},null,null,null,null,null,null,150000000]
[60,"CYKLO/PĚŠÍ","SMČB","Cyklo a pěší lávka v Rožnově",null,30000000,{"$f":"H49+I49+J49+K49+L49+M49+N49+O49","v":30000000},null,null,null,null,null,null,null,30000000]
[61,"CYKLO","SMČB","Cyklostezka podél Husovy ul., úsek Na Dlouhé louce - Studentská",null,5000000,5000000,null,null,5000000]
[63,"CYKLO","SMČB","Cyklostezka do Roudného",null,5000000,5000000,null,null,null,5000000]
[64,"CYKLO","SMČB","Cyklostezka do Litvínovic",null,5000000,5000000,null,null,null,5000000]
[65,"CYKLO","SMČB","Cyklostezka do Plané",null,5000000,5000000,null,null,null,null,5000000]
[66,"CYKLO","SMČB","Cyklostezka Suchomel",null,10000000,10000000,null,null,10000000]
[67,"CYKLO","SMČB","Cyklostezka okolo Vráteckého potoka",null,20000000,20000000,null,null,null,20000000]
[68,"CYKLO","SMČB","Cyklostezka sídliště Vltava",null,6000000,6000000,null,2000000,3000000,1000000]
[70,"CYKLO","SMČB","Cyklostezka ulice Rudolfovská - Hraniční",null,4000000,4000000,null,null,null,null,null,null,null,4000000]
[73,"CYKLO","SMČB","Cyklopruhy Novohradská",null,200000,200000,null,null,200000]
[74,"CYKLO","SMČB","Ochranné pruhy pro cyklisty na Lidické",null,500000,500000,null,500000]
[75,"CYKLO","SMČB","Cyklopřejezd přes ulici J. Boreckého",null,300000,300000,null,300000]
[76,"CYKLO","SMČB","Cykloopatření na Rudolfovské třídě",null,300000,300000,null,null,null,null,null,300000]
[77,"CYKLO","SMČB","Cykloopatření na ulici Generála Svobody",null,200000,200000,null,null,null,null,null,200000]
[78,"CYKLO","SMČB","Cykloopatření v ulici Družstevní, E. Beneše",null,500000,500000,null,null,null,null,500000]
[79,"CYKLO","SMČB","Cyklostezka podél Dobrovodského potoka",null,5000000,5000000,null,null,null,5000000]
[82,"CYKLO","SMČB","Ochranné pruhy pro cyklisty v ulici Milady Horákové",null,300000,300000,null,null,300000]
[83,"CYKLO","SMČB","Ochranné pruhy pro cyklisty v ulici E. Rošického",null,200000,200000,null,null,200000]
[84,"CYKLO","SMČB","Ochranné pruhy pro cyklisty v ulici Branišovská",null,300000,300000,null,null,null,300000]
[85,"CYKLO","SMČB","Ochranné pruhy pro cyklisty v ulici Husova",null,300000,300000,null,null,null,300000]
[86,"CYKLO","SMČB","Kapacitní parkování pro cyklisty",null,{"$f":"SUM(H69:O69)","v":1200000},1200000,150000,150000,150000,150000,150000,150000,150000,150000]
[87,"CYKLO/PĚŠÍ","SMČB","Lávka přes vlakové nádraží","Lávka přes vlakové nádraží propojující ul. Nádražní – U Lávky",100000000,{"$f":"H70+I70+J70+K70+L70+M70+N70+O70","v":100000000},null,null,null,100000000]
[88,"CYKLO/PĚŠÍ","SMČB","Rekonstrukce pěší zóny v Kanovnické ulici",null,100000000,100000000,null,null,100000000]
[null,"CYKLO/PĚŠÍ","SMČB","Cyklotrasa E + chodník Trägerova",null,11500000,11500000,7500000,4000000]
[90,"CYKLO","SMČB/JČK/OBEC","Cyklostezka Nemanice - Hrdějovice",null,30000000,5000000,null,null,null,null,null,null,5000000]
[97,"CYKLO","SMČB","Naplňování cyklogenerelu",null,{"$f":"SUM(H74:O74)","v":1600000},1600000,200000,200000,200000,200000,200000,200000,200000,200000]
[98,"PĚŠÍ","SMČB","Optimalizace pěších tras v území",null,8000000,8000000,1000000,1000000,1000000,1000000,1000000,1000000,1000000,1000000]
[99,"CYKLO","SMČB","Systém sdílení kol - Bike sharing",null,400000,400000,50000,50000,50000,50000,50000,50000,50000,50000]
[100,"PĚŠÍ","SMČB","Bezpečné přechody",null,20000000,20000000,2500000,2500000,2500000,2500000,2500000,2500000,2500000,2500000]
[101,"CYKLO","SMČB","Vyznačení společných přejezdů pro cyklisty a přechodů pro chodce na vybraných místech",null,4000000,4000000,500000,500000,500000,500000,500000,500000,500000,500000]
[102,"CYKLO","SMČB","Odstranění překážek na trase A","Propojení současné cykloinfrastruktury",800000,800000,100000,100000,100000,100000,100000,100000,100000,100000]
[103,"CYKLO","SMČB","Odstranění překážek na trase B","Propojení současné cykloinfrastruktury",{"$f":"SUM(H80:O80)","v":800000},800000,100000,100000,100000,100000,100000,100000,100000,100000]
[104,"CYKLO","SMČB","Odstranění překážek na trase C","Propojení současné cykloinfrastruktury",800000,800000,100000,100000,100000,100000,100000,100000,100000,100000]
[105,"CYKLO","SMČB","Odstranění překážek na trase D","Propojení současné cykloinfrastruktury",800000,800000,100000,100000,100000,100000,100000,100000,100000,100000]
[106,"CYKLO","SMČB","Odstranění překážek na trase E","Propojení současné cykloinfrastruktury",800000,800000,100000,100000,100000,100000,100000,100000,100000,100000]
[107,"CYKLO","SMČB","Odstranění překážek na trase F","Propojení současné cykloinfrastruktury",800000,800000,100000,100000,100000,100000,100000,100000,100000,100000]
[108,"CYKLO","SMČB","Odstranění překážek na trase G","Propojení současné cykloinfrastruktury",800000,800000,100000,100000,100000,100000,100000,100000,100000,100000]
[109,"CYKLO","SMČB","Odstranění překážek na trase H","Propojení současné cykloinfrastruktury",800000,800000,100000,100000,100000,100000,100000,100000,100000,100000]
[110,"CYKLO","SMČB","Odstranění překážek na trase J","Propojení současné cykloinfrastruktury",800000,800000,100000,100000,100000,100000,100000,100000,100000,100000]
[111,"CYKLO","SMČB/JČK/OBEC","Realizace rekreačních cyklostezek","Např. Vrbenské rybníky, Haklovy Dvory - okruh - České Vrbné - Vltava (podél Husovy ul.), Hvízdal - stará plzeňská trať - Dasný, Hluboká nádr., Bezdrev, Branišovská - Branišov - Dubné (směr Holašovice, Kluk), Malše - Roudné - Plav - Doudleby, Rožnov - Planá - letiště - Homole - směr Kleť, Nemanice - Hluboká - Ševětín - po vybudování žel. Tunelu Hrdějovice - Ševětín, využít stávající trať přes Zámostí, Cyklostezka Východ - kolem Vráteckého potoka do Rudolfova",{"$f":"SUM(H88:O88)","v":8000000},8000000,1000000,1000000,1000000,1000000,1000000,1000000,1000000,1000000]
["Veřejná doprava"]
[113,"VHD","JČK","Letiště České Budějovice",null,400000000,{"$f":"H90+I90+J90+K90+L90+M90+N90+O90","v":0}]
[116,"VHD","SMČB","Zastávka Červený Dvůr",null,2000000,{"$f":"H91+I91+J91+K91+L91+M91+N91+O91","v":2000000},null,null,2000000]
[117,"VHD","SMČB","Zastávka Karla IV.",null,2000000,2000000,2000000]
[118,"VHD","SMČB","Zastávka Komerční zóna Hodějovice",null,2000000,2000000,null,null,null,null,null,null,2000000]
[119,"VHD","SMČB","Zastávka Krematorium",null,2000000,2000000,null,2000000]
[120,"VHD","SMČB","Zastávka Multikino",null,2000000,2000000,null,2000000]
[121,"VHD","SMČB","Zastávka Na Zlaté Stoce",null,2000000,2000000,null,null,null,null,null,2000000]
[123,"VHD","SMČB","Zastávka Parkoviště Dlouhá Louka",null,4000000,4000000,4000000]
[124,"VHD","SMČB","Zastávka Parkoviště Dynamo",null,2000000,2000000,null,2000000]
[125,"VHD","SMČB","Zastávka Pod Vrškem",null,2000000,2000000,null,null,null,null,null,2000000]
[126,"VHD","SMČB","Zastávka Pohůrka",null,2000000,2000000,null,null,null,null,null,null,2000000]
[127,"VHD","SMČB","Zastávka Robert Bosch",null,2000000,2000000,null,null,null,null,2000000]
[128,"VHD","SMČB","Zastávka Samson",null,2000000,2000000,null,2000000]
[129,"VHD","SMČB","Zastávka Sportovní hala",null,2000000,2000000,null,2000000]
[130,"VHD","SMČB","Zastávka Švábův Hrádek",null,2000000,4000000,null,2000000,null,null,null,2000000]
[131,"VHD","SMČB","Zastávka Tolejbusová vozovna",null,2000000,2000000,null,2000000]
[132,"VHD","SMČB","Zastávka U Rozvodny",null,2000000,2000000,null,null,null,null,null,null,2000000]
[133,"VHD","SMČB","Zastávka Za Otýlií",null,2000000,2000000,null,null,null,null,null,null,null,2000000]
[134,"VHD","DPMČB","Rozvoj ITS pro MHD ",null,50000000,0,null,50000000]
[137,"VHD","DPMČB","Modernizace napájecí soustavy MHD",null,111000000,0]
[138,"VHD","JČK/DPMČB","Rozvoj IDSJK",null,50000000,0]
[139,"VHD","DPMČB","Napojení trolejbusové vozovny přes ul. Generála Píky",null,70000000,0,null,0]
[140,"VHD","SMČB","Přestupní uzly a terminály VHD",null,{"$f":"SUM(H112:O112)","v":11700000},11700000,300000,3300000,6600000,300000,300000,300000,300000,300000]
[141,"VHD","DPMČB/SMČB","Zavedení MHD do historického centra","Ekologická doprava",200000000,5000000,5000000]
[142,"VHD","DPMČB","Průběžná obnova vozového parku MHD","Podpora ekologické dopravy, nakup elektrobusu, CNG, trolejbusů s bateriemi",790000000,0]
[143,"VHD","SMČB/SŽDC","Realizace dalšího vstupu do vlakového nádraží z ul. Dobrovodské",null,400000000,50000000,null,null,null,null,null,null,null,50000000]
["Telematika"]
[144,"IAD/VHD","SMČB","Strategické detektory","Sběr dopravních dat",30000000,{"$f":"H117+I117+J117+K117+L117+M117+N117+O117","v":30000000},5000000,null,10000000,15000000]
[145,"IAD/VHD","SMČB","Kamerový dohledový systém",null,14500000,{"$f":"H118+I118+J118+K118+L118+M118+N118+O118","v":14500000},600000,7000000,6900000]
[146,"IAD/VHD","SMČB","Parkovací a naváděcí systémy parkovišť",null,17000000,17000000,600000,8200000,8200000]
[147,"IAD/VHD","SMČB","Naváděcí systém objízdných tras",null,59000000,59000000,null,null,29500000,29500000]
[148,"IAD/VHD","SMČB","Modernizace křižovatek a přechodů pro chodce",null,50000000,50000000,10000000,10000000,15000000,15000000]
[149,"IAD/VHD","SMČB","Preference MHD",null,45000000,45000000,45000000]
[150,"IAD/VHD","SMČB","Inteligentní zastávky MHD",null,10500000,10500000,3000000,2500000,3000000,2000000]
[151,"IAD/VHD","SMČB","Preventivní a represivní systémy",null,19000000,19000000,null,5000000,7000000,7000000]
[152,"IAD/VHD","SMČB","Meteosystémy",null,2000000,2000000,2000000]
[153,"IAD/VHD","SMČB","Vysokorychlostní vážení vozidel",null,7000000,7000000,null,null,null,7000000]
[154,"IAD/VHD","SMČB","Systémy pro podporu nemotorové dopravy",null,1500000,1500000,750000,750000]
[155,"IAD/VHD","SMČB","Dopravní informační a řídící centrum České Budějovice",null,125000000,125000000,2000000,60000000,63000000]
[156,"IAD/VHD","SMČB","Dopravní portál města ČB",null,2000000,2000000,2000000]
[157,"IAD/VHD","SMČB","Floating car data",null,{"$f":"SUM(H130:O130)","v":1500000},1500000,null,null,500000,null,500000,null,500000]
[158,"IAD/VHD","SMČB","Kooperativní systémy C-ITS",null,500000,500000,null,null,null,null,null,null,null,500000]
["Vodní doprava "]
[160,"VODNÍ","ŘVC","Úprava plavební cesty do centra ČB","Pro rekreační plavbu",100000000,0]
[161,"VODNÍ","ŘVC","Přístaviště na Vltavě","Pro rekreační plavbu",300000000,0]
[163,"VODNÍ","JMK/ŘVC","Protipovodňová opatření",null,50000000,0]
[null,null,null,null,null,null,{"$f":"SUM(G3:G135)","v":2851100000},{"$f":"SUM(H3:H135)","v":216950000},{"$f":"SUM(I3:I135)","v":372850000},556700000,580700000,281600000,202100000,320100000,370100000]
[]
["Ceny obsahují cenovou úroveň roku 2018"]

{"sheet":"měkká opatření","index":1,"n_rows":20,"n_cols":6,"rows_kept":20,"cut":false,"hidden":false,"merged":[[1,0,12,0],[13,0,18,0]]}
[null,"Název projektu","Popis","Druh dopravy","Investor","Cena ročně"]
["UDRŽITELNÁ DOPRAVA","Zlepšení vnímání městské hromadné dopravy ze strany veřejnosti","Akce na podporu užívání MHD (Kampaně typu: Jezdit MHD je normální, MHD nesmrdí, Víte, že... (prezentace zajímavých dat a faktů o MHD), Slušné chování v MHD..)","VHD","SMČB/DPMČB",700000]
[null,"Zlepšení informovanosti cestujících v městské hromadné dopravě","Propagační akce na podporu informovanosti o jednotlivých spojích, o zpoždění, o cenách jízdenek, on line jízdní řády…","VHD","SMČB/DPMČB",700000]
[null,"Informační a osvětové kampaně pro podporu veřejné dopravy DPMČB a JIKORD","Propagační akce na podporu IDS, informace o existenci, výhodnosti tarifů a funkci IDS (Kampaň upozorňující na finanční i časovou úsporu) ","VHD","SMČB/DPMČB/JIKORD",1500000]
[null,"Informační, osvětové a marketingové kampaně na podporu pěší a cyklistické dopravy","Propagační kampaně typu: Do práce na kole, Den bez aut, Evropský den mobility. Propagační materiály s vyznačenými cyklostezkami a trasami pro pěší. Propagace cyklostojanů a míst \"pro tvou duši\" (místo s pumpičkou), dále pak odpočinkových míst pro pěší a cyklisty.  Vhodné je propagovat také Bikesharing - způsob používání a umístění stanovišť. ","CYKLO, PĚŠÍ","SMČB",500000]
[null,"Informační kampaň na podporu nízkoemisní dopravy ","Kampaň na podporu nízkoemisních autobusů, trolejbusů, ekologických vozidel městských organizací atd. Výhody, úspory, zlepšení životního prostředí","IAD","SMČB",50000]
[null,"Podpora pro carpooling (spolujízda)","Propagační materiály vysvětlující spolujízdu, její výhody, zajišťování","IAD","SMČB",20000]
[null,"Podpora pro carsharing (sdílení vozidel)","Propagační materiály vysvětlující princip sdílení vozidel, jejich používání a umístění, výhody, úspory","IAD","SMČB",20000]
[null,"Zavádění motivačních opatření pro ekologičtější vozidla ","Propagační materiály o výhodnosti ekologičtějších vozidel z hlediska vlivů na životní prostředí v Českých Budějovicích a zdraví jejich občanů ","IAD, VHD","SMČB",50000]
[null,"Vypracování rámcových krizových plánů pro mimořádné události (zejména VHD)","Informace o existenci těchto plánů. Při krizové události (kolizní události) VHD, IAD je již předem dané co kdo má dělat a kam je třeba dopravu odklonit.","IAD, VHD","SMČB/DPMČB",250000]
[null,"Zvýhodněné parkování pro vozidla s ekologickým pohonem","Možnost zvýhodněného parkování v parkovacích zónách ","IAD","SMČB",50000]
[null,"Propagace záchytných parkovišť a parkovacích domů","Informační materiály, či informace v médiích či na viditelných místech - kde jsou tato parkoviště a parkovací domy umístěny a jejich cena","IAD","SMČB",50000]
[null,"Podpora firemních plánů mobility (bonusy, zázemí pro cyklisty atd.)","Informační materiály - co jsou firemní plány mobility, k čemu jsou a jaké z nich plynou výhody pro zaměstnance","VHD, CYKLO, PĚŠÍ","SMČB",50000]
["BEZPEČNOST, INFORMACE A VZDĚLÁVÁNÍ","Osvětová kampaň pro zvyšování bezpečnosti pěší a cyklistické dopravy","Kampaně zaměření na slušné a ohleduplné chování všech účastníků silničního provozu - Bezpečně na kole, Děti na kole, Helma, Cyklista je také řidič, S dětmi na kole, Přecházení vozovky, Chůze v silničním prostoru, Dítě ve městě, Cesta do školy…","CYKLO, PĚŠÍ","SMČB",50000]
[null,"Osvětová kampaň pro zvyšování bezpečnosti silničního provozu","Kampaně zaměření na slušné a ohleduplné chování všech účastníků silničního provozu - Jak na přechodu, Vidět a být viděn, Pozor chodci","IAD","SMČB",50000]
[null,"Podpora dopravní výchovy dětí","Dopravní výchova ve školách, školkách a při jakékoliv akci pořádané městem České Budějovice. Propagační předměty, hry, letáky, dopravní hřiště.","IAD, VHD, CYKLO","SMČB",50000]
[null,"Kampaň na podporu jednotlivých akcí","Před investiční akcí trpělivě vysvětlovat veřejnosti co, jak a proč se tyto jednotlivé investice dělají. Jaké tyto stavby májí a budou mít výhody a případné dočasné nevýhody ( omezení v průběhu stavby).","všechny typy dopravy","SMČB",1000000]
[null,"Propagace udržitelné městské mobility","Udržovat všeobecnou informovanost o udržitelných druzích doprav a možnosti veřejnosti ovlivňovat život v Českých Budějovicích ","všechny typy dopravy","SMČB",50000]
[null,"Aktualizace a rozvoj informačních portálů","Rozvoj portálů o VHD (online informace o spojích a jejich poloha, druh..), cyklo - aktuální stav cyklostezek (povrch, ..), pěší (zajímavá místa), IAD (uzavírky, délky oprav, kongesce), parkování, kvalitě životního prostředí. Vše na jedné stránce, přehledné, uživatelsky jednoduché","všechny typy dopravy","SMČB",50000]
[null,null,null,null,null,{"$f":"SUM(F2:F19)","v":5190000}]